bitfinex-derivatives/quotes_SOLF0:USTF0_20220106
["timestamp","ask_amount","ask_price","bid_price","bid_amount"]
[1641468461635,6.77529727,147.53,147.49,25.6583936]
[1641468461837,4.0,147.56,147.49,25.6583936]
[1641468462040,55.32958,147.5,147.46,34.3081]
[1641468462239,61.93558,147.5,147.45,56.77137493]
[1641468463038,61.93558,147.5,147.42,33.4247]
[1641468464138,27.66479,147.46,147.42,33.4247]
[1641468464338,27.66479,147.46,147.37,164.31559]
[1641468464538,27.66479,147.46,147.37,31.66479]
[1641468464739,27.66479,147.46,147.37,27.66479]
[1641468465341,27.66479,147.46,147.37,31.66479]
[1641468465941,27.66479,147.46,147.38,6.67968003]
[1641468466339,27.66479,147.46,147.39,4.0]
[1641468466540,27.66479,147.46,147.38,10.67968003]
[1641468466941,27.66479,147.46,147.39,4.0]
[1641468468442,27.66479,147.46,147.41,4.0]
[1641468469542,27.66479,147.5,147.41,4.0]
[1641468469744,27.66479,147.5,147.42,4.0]
[1641468470042,27.66479,147.5,147.43,4.0]
[1641468470243,27.66479,147.5,147.4,6.77346158]
[1641468470244,27.66479,147.5,147.44,4.0]
[1641468470644,27.66479,147.5,147.43,31.66479]
[1641468470946,27.66479,147.5,147.43,27.66479]
[1641468471144,27.66479,147.5,147.44,6.67968003]
[1641468472048,27.66479,147.5,147.4,4.0]
[1641468472247,27.66479,147.5,147.45,4.0]
[1641468472448,27.66479,147.53,147.45,4.0]
[1641468472648,27.66479,147.53,147.46,4.0]
[1641468472848,27.66479,147.53,147.45,37.779]
[1641468473250,27.66479,147.53,147.45,33.779]
[1641468474148,27.66479,147.53,147.41,72.3749]
[1641468474349,27.66479,147.49,147.42,32.8461]
[1641468475152,31.66479,147.49,147.42,32.8461]
[1641468475552,4.0,147.48,147.42,32.8461]
[1641468475753,4.0,147.48,147.41,5.73]
[1641468476256,10.77736361,147.48,147.41,5.73]
[1641468476456,27.66479,147.42,147.41,5.73]
[1641468483469,27.66479,147.42,147.38,34.4281]
[1641468484268,27.66479,147.42,147.38,38.4281]
[1641468484468,34.29579,147.44,147.38,34.4281]
[1641468484768,34.29579,147.44,147.38,38.4281]
[1641468484968,34.29579,147.44,147.39,4.0]
[1641468485169,34.29579,147.44,147.38,34.4281]
[1641468486970,34.29579,147.44,147.38,38.4281]
[1641468487171,34.29579,147.44,147.38,34.4281]
[1641468487372,6.631,147.44,147.41,4.0]
[1641468487570,27.66479,147.47,147.41,4.0]
[1641468487772,27.66479,147.47,147.39,10.69597162]
[1641468487971,27.66479,147.47,147.41,4.0]
[1641468488372,27.66479,147.47,147.42,4.0]
[1641468488775,27.66479,147.47,147.4,27.66479]
[1641468488971,27.66479,147.47,147.4,34.43825158]
[1641468489173,27.66479,147.5,147.4,34.43825158]
[1641468489174,27.66479,147.5,147.41,6.69597162]
[1641468489372,27.66479,147.5,147.41,10.69597162]
[1641468489773,27.66479,147.5,147.41,6.69597162]
[1641468490171,27.66479,147.5,147.41,10.69597162]
[1641468490374,27.66479,147.5,147.41,6.69597162]
[1641468490574,27.66479,147.5,147.41,10.69597162]
[1641468491276,27.66479,147.5,147.41,6.69597162]
[1641468491476,27.66479,147.53,147.46,4.0]
[1641468492679,27.66479,147.56,147.48,14.3104725]
[1641468493778,27.66479,147.56,147.47,21.00644412]
[1641468494181,27.66479,147.56,147.48,33.3716]
[1641468495583,27.66479,147.56,147.48,47.6820725]
[1641468497484,27.66479,147.56,147.48,33.3716]
[1641468498183,27.66479,147.56,147.48,47.6820725]
[1641468498583,27.66479,147.56,147.49,31.66479]
[1641468499083,27.66479,147.56,147.49,27.66479]
[1641468499287,27.66479,147.56,147.49,31.66479]
[1641468499686,27.66479,147.58,147.53,4.0]
[1641468499889,14.3104725,147.63,147.51,4.0]
[1641468500088,14.3104725,147.63,147.53,4.0]
[1641468500288,14.3104725,147.63,147.52,4.0]
[1641468500588,27.66479,147.61,147.53,27.66479]
[1641468500789,27.66479,147.61,147.54,32.7576]
[1641468501689,6.76956404,147.65,147.55,4.0]
[1641468501890,6.76956404,147.65,147.55,1.32920672]
[1641468502490,18.3104725,147.67,147.55,1.32920672]
[1641468502693,27.66479,147.65,147.54,32.7576]
[1641468502890,4.0,147.63,147.54,32.7576]
[1641468503090,4.0,147.62,147.54,32.7576]
[1641468503290,4.0,147.6,147.54,32.7576]
[1641468503491,4.0,147.62,147.54,32.7576]
[1641468503891,4.0,147.61,147.54,32.7576]
[1641468504092,6.77070991,147.63,147.54,32.7576]
[1641468504292,27.66479,147.65,147.54,32.7576]
[1641468504894,3.42087264,147.6,147.54,32.7576]
[1641468505093,3.42087264,147.6,147.54,25.09886186]
[1641468505494,4.0,147.62,147.54,25.09886186]
[1641468505695,4.0,147.61,147.54,25.09886186]
[1641468505896,6.77116837,147.62,147.54,25.09886186]
[1641468506095,3.42087264,147.64,147.54,25.09886186]
[1641468506294,3.42087264,147.64,147.54,29.09886186]
[1641468506494,3.42087264,147.61,147.55,4.0]
[1641468506693,3.42087264,147.61,147.56,27.66479]
[1641468507494,27.66479,147.65,147.56,27.66479]
[1641468509100,4.0,147.64,147.54,25.09886186]
[1641468509300,4.0,147.61,147.54,25.09886186]
[1641468509501,4.0,147.63,147.54,25.09886186]
[1641468509702,4.0,147.62,147.54,25.09886186]
[1641468509899,6.77002234,147.64,147.54,25.09886186]
[1641468510101,4.0,147.6,147.54,25.09886186]
[1641468510800,27.66479,147.58,147.54,25.09886186]
[1641468511601,27.66479,147.6,147.54,25.09886186]
[1641468512802,27.66479,147.6,147.54,29.63786186]
[1641468514003,27.66479,147.6,147.54,25.09886186]
[1641468515005,27.66479,147.6,147.55,1.32991737]
[1641468515808,27.66479,147.6,147.54,25.09886186]
[1641468517508,27.66479,147.6,147.55,4.0]
[1641468517707,27.66479,147.63,147.56,4.0]
[1641468518007,14.3104725,147.65,147.55,10.7665866]
[1641468518607,14.3104725,147.65,147.56,4.0]
[1641468518809,14.3104725,147.65,147.56,31.66479]
[1641468519308,14.3104725,147.65,147.56,27.66479]
[1641468519807,27.66479,147.67,147.56,28.99621973]
[1641468520811,3.42545678,147.66,147.57,1.33142973]
[1641468521213,10.03845678,147.66,147.57,1.33142973]
[1641468521508,10.03845678,147.66,147.58,4.76091396]
[1641468521713,4.76091396,147.64,147.59,32.2866]
[1641468522711,4.76091396,147.64,147.58,4.76091396]
[1641468522911,4.76091396,147.64,147.6,27.66479]
[1641468524011,4.76091396,147.65,147.6,27.66479]
[1641468525110,4.76091396,147.65,147.58,4.76091396]
[1641468525313,4.76091396,147.65,147.59,4.76091396]
[1641468526714,4.76091396,147.62,147.57,6.09346242]
[1641468527717,4.76091396,147.62,147.53,41.9752625]
[1641468527718,4.76091396,147.62,147.56,4.76091396]
[1641468528418,4.76091396,147.59,147.54,6.09346242]
[1641468529221,27.66479,147.58,147.54,6.09346242]
[1641468529718,32.42570396,147.58,147.53,4.76091396]
[1641468529919,38.99270396,147.58,147.53,4.76091396]
[1641468531322,34.23179,147.58,147.53,4.76091396]
[1641468532328,4.76091396,147.57,147.51,4.76091396]
[1641468533328,27.66479,147.54,147.51,4.76091396]
[1641468533529,27.66479,147.54,147.45,65.4953999]
[1641468533530,27.66479,147.54,147.5,4.76091396]
[1641468534131,33.47579,147.54,147.5,4.76091396]
[1641468534433,33.47579,147.54,147.49,4.76091396]
[1641468535431,38.23670396,147.54,147.48,6.09346242]
[1641468536432,33.47579,147.54,147.48,6.09346242]
[1641468537233,33.47579,147.54,147.47,39.01301396]
[1641468538236,33.47579,147.54,147.48,6.09116501]
[1641468539138,4.76091396,147.56,147.48,6.09116501]
[1641468539340,4.76091396,147.56,147.5,6.7688767]
[1641468539542,4.76091396,147.56,147.53,31.66479]
[1641468539844,6.567,147.58,147.53,27.66479]
[1641468541446,6.567,147.58,147.53,32.42570396]
[1641468543248,6.567,147.58,147.53,4.76091396]
[1641468544048,6.567,147.58,147.52,38.57451396]
[1641468544849,6.567,147.58,147.52,33.8136]
[1641468545550,6.567,147.58,147.52,38.57451396]
[1641468546253,6.567,147.58,147.52,33.8136]
[1641468546952,6.567,147.58,147.52,38.57451396]
[1641468548556,6.567,147.58,147.52,33.8136]
[1641468549258,4.0,147.58,147.52,38.57451396]
[1641468549859,36.42570396,147.59,147.52,4.76091396]
[1641468550057,4.0,147.55,147.52,4.76091396]
[1641468550258,4.0,147.55,147.51,4.76091396]
[1641468550460,31.66479,147.55,147.51,4.76091396]
[1641468551258,31.66479,147.55,147.48,4.76091396]
[1641468551660,4.0,147.52,147.48,4.76091396]
[1641468552061,4.0,147.53,147.48,4.76091396]
[1641468552558,64.09049396,147.55,147.48,4.76091396]
[1641468552758,60.09049396,147.55,147.48,4.76091396]
[1641468553160,4.76091396,147.53,147.46,6.09165501]
[1641468553561,10.71491396,147.53,147.46,6.09165501]
[1641468553761,14.71491396,147.53,147.46,6.09165501]
[1641468554061,10.71491396,147.53,147.46,6.09165501]
[1641468555261,4.0,147.52,147.46,6.09165501]
[1641468555461,14.71491396,147.53,147.46,6.09165501]
[1641468555662,10.71491396,147.53,147.47,4.76091396]
[1641468556362,5.954,147.53,147.48,4.76091396]
[1641468556861,4.76091396,147.54,147.48,4.76091396]
[1641468558265,55.32958,147.55,147.52,4.76091396]
[1641468559366,4.76091396,147.58,147.53,4.76091396]
[1641468559971,4.76091396,147.58,147.54,4.76091396]
[1641468560170,4.76091396,147.59,147.54,4.76091396]
[1641468560370,4.76091396,147.59,147.54,8.76091396]
[1641468561368,31.09735523,147.6,147.54,8.76091396]
[1641468561369,27.66479,147.6,147.57,4.76091396]
[1641468562569,27.66479,147.6,147.58,4.76091396]
[1641468563673,27.66479,147.6,147.56,6.09165501]
[1641468564776,27.66479,147.6,147.55,38.82321396]
[1641468565574,27.66479,147.6,147.55,34.0623]
[1641468565776,24.37236907,147.6,147.55,34.0623]
[1641468566876,4.76091396,147.59,147.55,34.0623]
[1641468568182,10.55191396,147.59,147.52,4.76091396]
[1641468568381,4.0,147.58,147.52,4.76091396]
[1641468568683,27.66479,147.55,147.52,4.76091396]
[1641468568884,31.66479,147.55,147.52,4.76091396]
[1641468569083,4.0,147.54,147.52,4.76091396]
[1641468569283,4.0,147.54,147.5,32.9895]
[1641468569484,4.0,147.53,147.48,4.76091396]
[1641468569687,4.0,147.54,147.48,4.76091396]
[1641468570387,8.76091396,147.54,147.47,4.76091396]
[1641468570585,8.76091396,147.54,147.47,6.09191249]
[1641468571789,4.76091396,147.54,147.47,6.09191249]
[1641468571989,4.0,147.53,147.47,6.09191249]
[1641468572190,8.76091396,147.54,147.47,6.09191249]
[1641468572489,4.0,147.53,147.47,6.09191249]
[1641468572789,8.76091396,147.54,147.47,6.09191249]
[1641468573189,4.0,147.53,147.47,6.09191249]
[1641468573489,4.76091396,147.54,147.47,6.09191249]
[1641468574089,4.76091396,147.54,147.47,10.09191249]
[1641468574290,4.76091396,147.54,147.48,4.0]
[1641468574891,4.76091396,147.54,147.53,27.66479]
[1641468575493,4.76091396,147.58,147.51,32.42570396]
[1641468575894,8.76091396,147.58,147.51,4.76091396]
[1641468576294,4.76091396,147.58,147.51,4.76091396]
[1641468576492,4.76091396,147.56,147.49,4.76091396]
[1641468576893,32.42570396,147.56,147.49,4.76091396]
[1641468578094,14.3104725,147.6,147.49,4.76091396]
[1641468578095,4.76091396,147.57,147.49,4.76091396]
[1641468578795,4.76091396,147.59,147.51,4.76091396]
[1641468578994,8.76091396,147.59,147.51,4.76091396]
[1641468579195,4.76091396,147.59,147.51,4.76091396]
[1641468579394,8.76091396,147.59,147.51,4.76091396]
[1641468579595,4.0,147.58,147.51,4.76091396]
[1641468579796,4.76091396,147.58,147.5,6.09191249]
[1641468579996,4.0,147.57,147.5,6.09191249]
[1641468580396,4.76091396,147.58,147.5,6.09191249]
[1641468580598,4.76091396,147.57,147.5,4.76091396]
[1641468581097,32.42570396,147.57,147.5,4.76091396]
[1641468584903,36.42570396,147.57,147.5,4.76091396]
[1641468586106,4.76091396,147.56,147.5,4.76091396]
[1641468587106,4.76091396,147.56,147.5,32.42570396]
[1641468587517,4.76091396,147.56,147.5,36.42570396]
[1641468587706,4.76091396,147.56,147.51,4.0]
[1641468587905,4.76091396,147.56,147.5,32.42570396]
[1641468587906,4.76091396,147.56,147.53,4.0]
[1641468588106,14.3104725,147.6,147.53,4.0]
[1641468588409,14.3104725,147.6,147.52,4.0]
[1641468588607,14.3104725,147.63,147.54,1.33231673]
[1641468588808,14.3104725,147.63,147.54,8.0995902]
[1641468589009,14.3104725,147.63,147.56,27.66479]
[1641468589209,14.3104725,147.63,147.54,8.0995902]
[1641468589408,14.3104725,147.63,147.54,1.33231673]
[1641468589810,4.0,147.64,147.55,1.33231673]
[1641468590009,48.74505568,147.65,147.55,1.33231673]
[1641468590010,4.0,147.63,147.55,1.33231673]
[1641468590210,4.0,147.64,147.55,1.33231673]
[1641468590611,14.3104725,147.61,147.51,37.6863]
[1641468591013,14.3104725,147.61,147.56,27.66479]
[1641468591510,21.73966695,147.63,147.56,27.66479]
[1641468592315,4.0,147.61,147.52,1.33297022]
[1641468592513,4.0,147.61,147.51,33.6863]
[1641468592711,4.0,147.6,147.5,45.8042387]
[1641468592911,6.77231478,147.59,147.5,41.9752625]
[1641468593111,27.66479,147.58,147.5,41.9752625]
[1641468593312,27.66479,147.58,147.51,1.33369588]
[1641468594315,3.42919445,147.57,147.51,1.33369588]
[1641468595515,7.42919445,147.57,147.51,1.33369588]
[1641468595716,8.33619445,147.57,147.51,1.33369588]
[1641468595915,12.33619445,147.57,147.51,1.33369588]
[1641468596118,4.0,147.56,147.51,1.33369588]
[1641468596316,4.0,147.55,147.51,1.33369588]
[1641468596516,8.33619445,147.57,147.51,1.33369588]
[1641468596717,3.42919445,147.55,147.49,1.33369588]
[1641468597817,3.42919445,147.56,147.49,1.33369588]
[1641468598618,41.9752625,147.58,147.49,1.33369588]
[1641468598819,27.66479,147.58,147.49,1.33369588]
[1641468599519,3.43651598,147.57,147.49,1.33369588]
[1641468603323,3.43651598,147.57,147.49,28.99848588]
[1641468603524,3.43651598,147.57,147.49,32.99848588]
[1641468603928,27.66479,147.59,147.5,26.38667569]
[1641468604125,27.66479,147.59,147.51,4.0]
[1641468604326,14.3104725,147.6,147.52,6.76818951]
[1641468604528,14.3104725,147.6,147.56,4.0]
[1641468604827,14.3104725,147.6,147.57,4.0]
[1641468605026,37.8306099,147.63,147.57,4.0]
[1641468605027,14.31612817,147.65,147.57,4.0]
[1641468605230,14.31612817,147.65,147.58,4.0]
[1641468605427,14.31612817,147.65,147.59,27.66479]
[1641468606028,27.66479,147.66,147.59,27.66479]
[1641468606233,3.43096831,147.65,147.59,27.66479]
[1641468607432,3.43096831,147.65,147.54,3.83023956]
[1641468607630,3.43096831,147.65,147.53,27.66479]
[1641468608231,3.43096831,147.65,147.55,1.33432036]
[1641468608434,4.0,147.64,147.55,1.33432036]
[1641468608733,7.43096831,147.65,147.55,1.33432036]
[1641468609131,3.43096831,147.63,147.55,1.33432036]
[1641468609331,7.43096831,147.63,147.55,1.33432036]
[1641468609531,27.66479,147.61,147.55,1.33432036]
[1641468609933,27.66479,147.61,147.54,34.137]
[1641468610832,3.43096831,147.6,147.54,34.137]
[1641468612234,3.43096831,147.6,147.49,6.76933491]
[1641468612533,7.43096831,147.6,147.5,33.5658]
[1641468612732,4.0,147.59,147.5,33.5658]
[1641468613134,4.0,147.59,147.5,34.89971244]
[1641468614041,4.0,147.59,147.51,1.33391244]
[1641468614233,3.43096831,147.58,147.51,1.33391244]
[1641468614633,8.28096831,147.58,147.51,1.33391244]
[1641468615535,27.66479,147.56,147.51,1.33391244]
[1641468615838,27.66479,147.56,147.5,33.5658]
[1641468617142,4.0,147.54,147.47,3.82982185]
[1641468617341,4.0,147.55,147.47,3.82982185]
[1641468617546,27.66479,147.53,147.45,31.6339]
[1641468618744,34.34479,147.53,147.45,31.6339]
[1641468618946,34.34479,147.53,147.46,1.33291192]
[1641468619544,27.66479,147.5,147.46,1.33291192]
[1641468619943,27.66479,147.5,147.42,32.4554]
[1641468620147,27.66479,147.5,147.41,3.83134094]
[1641468620444,31.66479,147.5,147.39,37.09674094]
[1641468621145,31.66479,147.5,147.42,1.33178571]
[1641468621554,27.66479,147.47,147.42,1.33178571]
[1641468622052,27.66479,147.47,147.4,1.33178571]
[1641468626460,20.62701778,147.47,147.4,1.33178571]
[1641468626861,20.62701778,147.47,147.4,8.04203596]
[1641468628063,20.62701778,147.47,147.4,35.70682596]
[1641468628763,20.62701778,147.47,147.41,8.04203596]
[1641468629165,27.66479,147.5,147.41,8.04203596]
[1641468629864,6.77414984,147.55,147.41,8.04203596]
[1641468630066,27.66479,147.54,147.44,27.66479]
[1641468630266,27.66479,147.54,147.45,32.356]
[1641468631464,27.66479,147.56,147.46,4.0]
[1641468631664,6.77300281,147.58,147.46,4.0]
[1641468632066,6.77300281,147.58,147.46,5.32798233]
[1641468632267,6.77300281,147.58,147.5,27.66479]
[1641468632465,6.77300281,147.58,147.51,31.5584]
[1641468632666,27.66479,147.59,147.51,31.5584]
[1641468632868,27.66479,147.61,147.51,31.5584]
[1641468633068,64.91528336,147.65,147.51,31.5584]
[1641468633266,64.91528336,147.65,147.52,4.0]
[1641468633471,68.91528336,147.65,147.51,31.5584]
[1641468633671,68.91528336,147.65,147.51,35.5584]
[1641468633966,3.41738993,147.64,147.52,1.32838609]
[1641468634168,27.66479,147.62,147.53,27.66479]
[1641468634769,27.66479,147.62,147.52,1.32838609]
[1641468635268,6.77139762,147.61,147.52,1.32838609]
[1641468635468,10.18878755,147.61,147.51,31.5584]
[1641468635869,14.18878755,147.61,147.51,31.5584]
[1641468636270,27.66479,147.57,147.51,31.5584]
[1641468637069,31.66479,147.57,147.46,174.96802203]
[1641468637271,31.66479,147.57,147.47,33.0596]
[1641468637870,4.0,147.56,147.47,33.0596]
[1641468638072,7.42421962,147.56,147.47,33.0596]
[1641468638273,27.66479,147.53,147.47,33.0596]
[1641468638470,27.66479,147.53,147.43,14.23503203]
[1641468638672,31.66479,147.53,147.43,14.23503203]
[1641468639071,4.0,147.52,147.42,48.50973203]
[1641468639674,4.0,147.52,147.43,1.32999868]
[1641468640071,4.0,147.51,147.43,1.32999868]
[1641468640271,27.66479,147.48,147.43,1.32999868]
[1641468641775,27.66479,147.53,147.43,1.32999868]
[1641468641973,31.66479,147.53,147.43,1.32999868]
[1641468642175,4.0,147.51,147.43,1.32999868]
[1641468642374,27.66479,147.48,147.43,1.32999868]
[1641468643673,27.66479,147.48,147.42,48.50973203]
[1641468643873,27.66479,147.48,147.42,34.2747]
[1641468644073,33.72279,147.48,147.42,34.2747]
[1641468646277,33.72279,147.48,147.43,1.3308708]
[1641468647176,14.23503203,147.53,147.43,1.3308708]
[1641468647978,18.23503203,147.56,147.43,1.3308708]
[1641468648378,27.66479,147.53,147.43,1.3308708]
[1641468648979,27.66479,147.53,147.46,4.75977259]
[1641468649178,31.66479,147.53,147.46,4.75977259]
[1641468649579,4.0,147.51,147.46,4.75977259]
[1641468649980,4.0,147.5,147.45,4.75977259]
[1641468650378,27.66479,147.48,147.45,4.75977259]
[1641468650578,27.66479,147.48,147.43,1.3308708]
[1641468650579,32.77679,147.48,147.43,6.09064339]
[1641468652383,5.112,147.48,147.44,4.75977259]
[1641468653183,5.112,147.48,147.43,1.3308708]
[1641468653184,5.112,147.48,147.45,4.75977259]
[1641468654785,5.112,147.48,147.44,4.75977259]
[1641468655586,31.66479,147.49,147.44,4.75977259]
[1641468655787,31.66479,147.49,147.43,1.3308708]
[1641468655788,31.66479,147.49,147.43,6.09064339]
[1641468656387,27.66479,147.46,147.43,6.09064339]
[1641468656591,4.0,147.44,147.4,14.23503203]
[1641468656786,4.0,147.43,147.4,14.23503203]
[1641468656987,9.599,147.43,147.42,4.76279962]
[1641468657189,5.599,147.43,147.42,4.76279962]
[1641468657387,9.599,147.43,147.42,4.76279962]
[1641468657588,9.599,147.43,147.39,14.23503203]
[1641468657989,5.599,147.43,147.39,14.23503203]
[1641468658389,27.66479,147.42,147.36,31.8491]
[1641468658890,5.599,147.43,147.36,31.8491]
[1641468660503,38.44330212,147.46,147.36,31.8491]
[1641468660504,66.10809212,147.46,147.36,31.8491]
[1641468660694,55.32958,147.46,147.36,35.8491]
[1641468661092,55.32958,147.46,147.36,31.8491]
[1641468662196,59.32958,147.46,147.36,31.8491]
[1641468662396,4.0,147.44,147.36,31.8491]
[1641468662802,10.77897163,147.45,147.36,31.8491]
[1641468663197,10.77897163,147.45,147.34,27.66479]
[1641468663398,4.0,147.43,147.34,27.66479]
[1641468663998,10.77897163,147.45,147.34,27.66479]
[1641468664200,4.0,147.44,147.34,27.66479]
[1641468664400,27.66479,147.42,147.34,27.66479]
[1641468665204,34.55479,147.42,147.34,27.66479]
[1641468666001,38.55479,147.42,147.32,34.5419]
[1641468666403,27.66479,147.39,147.32,34.5419]
[1641468668708,27.66479,147.39,147.32,38.5419]
[1641468668906,27.66479,147.42,147.32,34.5419]
[1641468669206,27.66479,147.42,147.33,4.0]
[1641468669408,27.66479,147.42,147.32,34.5419]
[1641468669707,27.66479,147.42,147.32,38.5419]
[1641468670109,6.77782296,147.47,147.34,14.23503203]
[1641468670311,6.77782296,147.47,147.34,18.23503203]
[1641468670608,27.66479,147.45,147.35,27.66479]
[1641468672409,27.66479,147.45,147.34,18.0677635]
[1641468673313,31.66479,147.45,147.34,18.0677635]
[1641468673512,31.66479,147.45,147.34,24.78192529]
[1641468673711,27.66479,147.45,147.34,24.78192529]
[1641468675015,27.66479,147.45,147.34,20.94919382]
[1641468675513,27.66479,147.45,147.35,14.23503203]
[1641468676414,27.66479,147.45,147.36,14.23503203]
[1641468677013,27.66479,147.45,147.37,32.7318]
[1641468684827,6.77920141,147.44,147.37,32.7318]
[1641468685325,27.66479,147.42,147.37,32.7318]
[1641468686527,32.43779,147.42,147.37,25.06628695]
[1641468686925,36.43779,147.42,147.34,14.23503203]
[1641468687125,36.43779,147.42,147.35,14.23503203]
[1641468687327,60.10258,147.42,147.35,14.23503203]
[1641468687527,6.78127013,147.4,147.35,14.23503203]
[1641468687731,4.0,147.39,147.35,14.23503203]
[1641468687928,6.78104021,147.4,147.33,14.23503203]
[1641468688128,4.0,147.36,147.33,14.23503203]
[1641468688327,4.0,147.35,147.33,14.23503203]
[1641468688928,6.78104021,147.4,147.33,14.23503203]
[1641468689130,4.0,147.37,147.33,14.23503203]
[1641468689330,27.66479,147.35,147.3,14.23503203]
[1641468690528,27.66479,147.35,147.29,54.0648344]
[1641468691335,27.66479,147.35,147.29,47.31763203]
[1641468691530,4.0,147.31,147.29,14.23503203]
[1641468691732,6.791,147.31,147.29,14.23503203]
[1641468691931,10.791,147.31,147.29,14.23503203]
[1641468692132,6.791,147.31,147.29,14.23503203]
[1641468692538,6.791,147.31,147.27,14.23503203]
[1641468693336,27.66479,147.3,147.27,14.23503203]
[1641468693636,27.66479,147.3,147.23,47.18723203]
[1641468694738,27.66479,147.3,147.23,32.9522]
[1641468694936,27.66479,147.3,147.24,4.0]
[1641468695337,27.66479,147.3,147.23,51.18723203]
[1641468695536,27.66479,147.3,147.23,47.18723203]
[1641468696237,27.66479,147.3,147.24,20.95008074]
[1641468697039,27.66479,147.3,147.24,22.27727756]
[1641468697842,27.66479,147.3,147.24,15.56222885]
[1641468698043,27.66479,147.3,147.24,1.32719682]
[1641468701145,34.44813012,147.35,147.24,1.32719682]
[1641468701346,27.66479,147.35,147.24,1.32719682]
[1641468701545,27.66479,147.35,147.26,27.66479]
[1641468701746,6.78195999,147.38,147.26,27.66479]
[1641468702149,6.78195999,147.38,147.27,4.0]
[1641468702344,27.66479,147.39,147.27,9.905]
[1641468702546,27.66479,147.39,147.28,34.2473]
[1641468703649,55.32958,147.39,147.28,34.2473]
[1641468703848,55.32958,147.39,147.29,1.32719682]
[1641468704049,55.32958,147.39,147.31,4.0]
[1641468704249,55.32958,147.39,147.29,1.32719682]
[1641468704250,14.23503203,147.44,147.32,4.0]
[1641468704449,14.23503203,147.44,147.32,9.012]
[1641468704851,21.01400366,147.45,147.32,10.33919682]
[1641468705049,21.01400366,147.45,147.33,38.6786]
[1641468705751,27.66479,147.44,147.34,27.66479]
[1641468705951,27.66479,147.44,147.34,28.99198682]
[1641468707154,4.0,147.42,147.35,1.32719682]
[1641468707356,10.77966102,147.43,147.35,1.32719682]
[1641468707857,27.66479,147.37,147.33,34.6786]
[1641468708656,34.44399141,147.44,147.33,34.6786]
[1641468709058,27.66479,147.44,147.33,34.6786]
[1641468709556,27.66479,147.44,147.34,1.32839407]
[1641468709759,6.77966102,147.43,147.34,1.32839407]
[1641468709959,27.66479,147.39,147.34,1.32839407]
[1641468711160,27.66479,147.39,147.31,27.66479]
[1641468711860,27.66479,147.39,147.32,1.32864837]
[1641468713966,27.66479,147.39,147.31,27.66479]
[1641468715571,27.66479,147.39,147.32,1.33006322]
[1641468717273,6.78058042,147.41,147.32,1.33006322]
[1641468718075,27.66479,147.37,147.33,4.76575563]
[1641468718675,4.76575563,147.4,147.33,4.76575563]
[1641468720078,27.66479,147.37,147.33,4.76575563]
[1641468720776,4.76575563,147.4,147.33,8.76575563]
[1641468720979,4.76575563,147.4,147.35,4.0]
[1641468721379,14.23503203,147.43,147.38,4.0]
[1641468721579,14.23503203,147.43,147.4,4.0]
[1641468721776,37.8306099,147.47,147.4,4.0]
[1641468721977,37.8306099,147.47,147.36,6.77529727]
[1641468722178,14.29162817,147.48,147.45,27.66479]
[1641468723377,41.26328713,147.52,147.45,27.66479]
[1641468723581,3.43267723,147.52,147.45,27.66479]
[1641468726281,27.66479,147.53,147.45,27.66479]
[1641468727583,6.77346158,147.57,147.48,4.0]
[1641468727984,6.77346158,147.57,147.47,4.0]
[1641468728184,6.77346158,147.57,147.51,27.66479]
[1641468728384,3.41711507,147.56,147.51,27.66479]
[1641468729685,15.69278943,147.59,147.52,4.0]
[1641468730283,15.69278943,147.59,147.51,27.66479]
[1641468730284,91.23338068,147.66,147.58,27.66479]
[1641468730484,56.79948488,147.66,147.58,27.66479]
[1641468730687,3.41260239,147.65,147.58,27.66479]
[1641468730885,15.67284543,147.65,147.58,27.66479]
[1641468731887,34.43252146,147.69,147.58,27.66479]
[1641468733389,34.43252146,147.69,147.58,31.66479]
[1641468733589,34.43252146,147.69,147.61,4.0]
[1641468734189,34.43252146,147.69,147.63,27.66479]
[1641468735193,99.4102,147.74,147.63,27.66479]
[1641468735390,6.76521327,147.75,147.63,31.66479]
[1641468735591,6.76521327,147.75,147.66,4.0]